fUST/lending_fUST_20260410
["ID","MTS","AMOUNT","RATE_DAILY","PERIOD"]
[420182899,1775755845837,-500.0,0.00019178,18]
[420182900,1775755845847,-500.0,0.00019178,18]
[420182901,1775755845857,-500.0,0.00019178,18]
[420182902,1775755845867,-1116.75,0.00019178,18]
[420182903,1775755845877,-697.57,0.00019178,2]
[420182904,1775755845887,-697.57,0.00019178,2]
[420182905,1775755845897,-697.57,0.00019178,2]
[420182906,1775755845907,-697.57,0.00019178,2]
[420182907,1775755845917,-697.57,0.00019178,2]
[420182908,1775755845927,-697.57,0.00019178,2]
[420182909,1775755845937,-697.57,0.00019178,2]
[420182910,1775755845947,-697.57,0.00019178,2]
[420182911,1775755845957,-1168.36,0.00019178,2]
[420182912,1775755845967,-650.950018,0.00019178,2]
[420182913,1775755845976,-650.950018,0.00019178,2]
[420182914,1775755845986,-650.950018,0.00019178,2]
[420182915,1775755845997,-650.950018,0.00019178,2]
[420182916,1775755846007,-650.950018,0.00019178,2]
[420182917,1775755846017,-650.950018,0.00019178,2]
[420182918,1775755846027,-650.950018,0.00019178,2]
[420182919,1775755846037,-650.950018,0.00019178,2]
[420182920,1775755846047,-650.950018,0.00019178,2]
[420182921,1775755846056,-650.950018,0.00019178,2]
[420182922,1775755846067,-650.950018,0.00019178,2]
[420182923,1775755846077,-650.950018,0.00019178,2]
[420182924,1775755846087,-650.950018,0.00019178,2]
[420182925,1775755846097,-650.950018,0.00019178,2]
[420182926,1775755846107,-650.950018,0.00019178,2]
[420182927,1775755846117,-650.950018,0.00019178,2]
[420182928,1775755846127,-650.950018,0.00019178,2]
[420182929,1775755846137,-650.950018,0.00019178,2]
[420182930,1775755846147,-650.950018,0.00019178,2]
[420182931,1775755846157,-650.950018,0.00019178,2]
[420182932,1775755846167,-151.0,0.00019178,2]
[420182933,1775755846177,-151.0,0.00019178,2]
[420182934,1775755846187,-151.0,0.00019178,2]
[420182935,1775755846197,-151.0,0.00019178,2]
[420182936,1775755846207,-151.0,0.00019178,2]
[420182937,1775755846217,-151.0,0.00019178,2]
[420182938,1775755846227,-151.0,0.00019178,2]
[420182939,1775755846236,-151.0,0.00019178,2]
[420182940,1775755846246,-151.0,0.00019178,2]
[420182941,1775755846256,-151.0,0.00019178,2]
[420182942,1775755846267,-151.0,0.00019178,2]
[420182943,1775755846276,-151.0,0.00019178,2]
[420182944,1775755846286,-151.0,0.00019178,2]
[420182945,1775755846295,-151.0,0.00019178,2]
[420182946,1775755846304,-151.0,0.00019178,2]
[420182947,1775755846314,-151.0,0.00019178,2]
[420182948,1775755846324,-225.563541,0.00019178,2]
[420182949,1775755846334,-1243.0,0.0001918,2]
[420182950,1775755846344,-2183.31810187,0.00019202,2]
[420182951,1775755846353,-599.60298507,0.00019202,2]
[420182952,1775755846363,-2264.10087164,0.00019257,2]
[420182953,1775755846373,-621.78829552,0.00019257,2]
[420182954,1775755846383,-294.79016802,0.0001927,2]
[420182955,1775755846393,-2347.87260389,0.00019312,2]
[420182956,1775755846403,-644.79446246,0.00019312,2]
[420182957,1775755846413,-2434.74389024,0.00019367,2]
[420182958,1775755846423,-668.65185757,0.00019367,2]
[420182959,1775755846432,-210.518606,0.00019391,2]
[420182960,1775755846442,-250.0,0.00019397,7]
[420182961,1775755846452,-2524.82941417,0.00019422,2]
[420182962,1775755846462,-693.3919763,0.00019422,2]
[420182963,1775755846472,-982.0228,0.00019451,18]
[420182964,1775755846482,-982.0228,0.00019451,18]
[420182965,1775755846492,-982.0228,0.00019451,18]
[420182966,1775755846501,-982.02279999,0.00019451,18]
[420182967,1775755846511,-3151.9901,0.00019452,18]
[420182968,1775755846521,-500.0,0.00019452,18]
[420182969,1775755846530,-500.0,0.00019452,18]
[420182970,1775755846540,-500.0,0.00019452,18]
[420182971,1775755846550,-547.48160835,0.00019452,18]
[420182972,1775755846559,-500.0,0.00019452,18]
[420182973,1775755846569,-500.0,0.00019452,18]
[420182974,1775755846579,-500.0,0.00019452,18]
[420182975,1775755846589,-500.0,0.00019452,18]
[420182976,1775755846598,-500.0,0.00019452,18]
[420182977,1775755846607,-500.0,0.00019452,18]
[420182978,1775755846617,-500.0,0.00019452,18]
[420182980,1775755846627,-798.62,0.00019452,18]
[420182981,1775755846636,-1945.98,0.00019452,18]
[420182982,1775755846646,-1134.34,0.00019452,18]
[420182984,1775755846655,-500.0,0.00019452,18]
[420182985,1775755846665,-3993.05,0.00019452,18]
[420182987,1775755846674,-483.96975039,0.00019452,18]
[420182988,1775755846684,-500.0,0.00019452,18]
[420182989,1775755846693,-500.0,0.00019452,18]
[420182990,1775755846703,-500.0,0.00019452,18]
[420182991,1775755846712,-500.0,0.00019452,18]
[420182992,1775755846721,-500.0,0.00019452,18]
[420182993,1775755846731,-1076.44,0.00019452,18]
[420182994,1775755846741,-941.97,0.00019452,18]
[420182995,1775755846751,-1743.81,0.00019452,18]
[420182996,1775755846760,-517.62,0.00019452,18]
[420182997,1775755846769,-4297.5117,0.00019452,18]
[420182998,1775755846779,-4297.5117,0.00019452,18]
[420182999,1775755846789,-500.0,0.00019452,18]
[420183000,1775755846799,-500.0,0.00019452,18]
[420183001,1775755846809,-500.0,0.00019452,18]
[420183002,1775755846820,-500.0,0.00019452,18]
[420183003,1775755846829,-577.29,0.00019452,18]
[420183004,1775755846841,-500.0,0.00019452,18]
[420183005,1775755846850,-500.0,0.00019452,18]
[420183006,1775755846861,-562.53,0.00019452,18]
[420183007,1775755846871,-500.0,0.00019452,18]
[420183008,1775755846881,-500.0,0.00019452,18]
[420183009,1775755846890,-500.0,0.00019452,18]
[420183010,1775755846899,-500.0,0.00019452,18]
[420183011,1775755846909,-820.99,0.00019452,18]
[420183012,1775755846919,-869.13,0.00019452,18]
[420183013,1775755846929,-539.39,0.00019452,18]
[420183014,1775755846938,-1437.12,0.00019452,18]
[420183015,1775755846948,-500.0,0.00019452,12]
[420183016,1775755846958,-170.65931655,0.00019452,18]
[420183017,1775755846968,-590.46136404,0.00019452,18]
[420183018,1775755846978,-500.0,0.00019452,18]
[420183019,1775755846988,-500.0,0.00019452,18]
[420183020,1775755846998,-582.65,0.00019452,18]
[420183021,1775755847009,-500.0,0.00019452,18]
[420183022,1775755847019,-500.0,0.00019452,18]
[420183023,1775755847030,-500.0,0.00019452,18]
[420183024,1775755847040,-500.0,0.00019452,18]
[420183025,1775755847049,-500.0,0.00019452,18]
[420183026,1775755847059,-500.0,0.00019452,18]
[420183027,1775755847069,-646.53634127,0.00019452,18]
[420183029,1775755847078,-500.0,0.00019452,18]
[420183030,1775755847088,-1022.95,0.00019452,18]
[420183032,1775755847098,-500.0,0.00019452,18]
[420183034,1775755847107,-311.71643126,0.00019452,18]
[420183036,1775755847117,-500.0,0.00019452,18]
[420183038,1775755847126,-500.0,0.00019452,18]
[420183039,1775755847136,-516.37,0.00019452,18]
[420183042,1775755847371,-500.0,0.00019452,18]
[420183043,1775755847389,-500.0,0.00019452,18]
[420183044,1775755847399,-500.0,0.00019452,18]
[420183045,1775755847408,-718.2,0.00019452,18]
[420183046,1775755847417,-500.0,0.00019452,18]
[420183047,1775755847426,-500.0,0.00019452,18]
[420183048,1775755847436,-609.03,0.00019452,18]
[420183049,1775755847444,-1016.17,0.00019452,18]
[420183050,1775755847455,-500.0,0.00019452,18]
[420183051,1775755847464,-500.0,0.00019452,18]
[420183052,1775755847473,-500.0,0.00019452,18]
[420183053,1775755847484,-500.0,0.00019452,18]
[420183054,1775755847493,-500.0,0.00019452,18]
[420183055,1775755847502,-500.0,0.00019452,18]
[420183056,1775755847511,-812.39,0.00019452,18]
[420183057,1775755847522,-500.0,0.00019452,18]
[420183058,1775755847531,-500.0,0.00019452,18]
[420183059,1775755847539,-500.0,0.00019452,18]
[420183060,1775755847549,-1130.55,0.00019452,18]
[420183061,1775755847558,-500.0,0.00019452,18]
[420183062,1775755847568,-715.39,0.00019452,18]
[420183063,1775755847577,-500.0,0.00019452,18]
[420183064,1775755847586,-500.0,0.00019452,18]
[420183065,1775755847598,-290.33216464,0.00019452,18]
[420183066,1775755847608,-500.0,0.00019452,18]
[420183067,1775755847618,-555.18,0.00019452,18]
[420183068,1775755847628,-727.7,0.00019452,18]
[420183069,1775755847637,-500.0,0.00019452,18]
[420183070,1775755847647,-500.0,0.00019452,18]
[420183071,1775755847656,-500.0,0.00019452,18]
[420183072,1775755847665,-500.0,0.00019452,18]
[420183073,1775755847675,-500.0,0.00019452,18]
[420183074,1775755847684,-500.0,0.00019452,18]
[420183075,1775755847694,-500.0,0.00019452,18]
[420183076,1775755847703,-726.54,0.00019452,18]
[420183077,1775755847713,-500.0,0.00019452,18]
[420183078,1775755847723,-500.0,0.00019452,18]
[420183079,1775755847733,-1212.56,0.00019452,18]
[420183080,1775755847742,-500.0,0.00019452,18]
[420183081,1775755847751,-1096.49,0.00019452,18]
[420183082,1775755847761,-773.27,0.00019452,18]
[420183083,1775755847770,-500.0,0.00019452,18]
[420183084,1775755847779,-500.0,0.00019452,18]
[420183085,1775755847788,-500.0,0.00019452,18]
[420183086,1775755847798,-500.0,0.00019452,18]
[420183087,1775755847808,-500.0,0.00019452,8]
[420183088,1775755847817,-500.0,0.00019452,7]
[420183089,1775755847827,-500.0,0.00019452,18]
[420183090,1775755847836,-208.29,0.00019452,18]
[420183091,1775755847848,-500.0,0.00019452,18]
[420183092,1775755847858,-500.0,0.00019452,18]
[420183093,1775755847868,-500.0,0.00019452,18]
[420183094,1775755847878,-597.36,0.00019452,18]
[420183095,1775755847888,-649.48599354,0.00019452,18]
[420183096,1775755847897,-500.0,0.00019452,18]
[420183097,1775755847907,-500.0,0.00019452,18]
[420183098,1775755847916,-577.91,0.00019452,18]
[420183099,1775755847926,-500.0,0.00019452,18]
[420183100,1775755847935,-549.07,0.00019452,18]
[420183101,1775755847944,-500.0,0.00019452,18]
[420183102,1775755847954,-690.93,0.00019452,18]
[420183103,1775755847963,-500.0,0.00019452,18]
[420183104,1775755847972,-632.4415859,0.00019452,18]
[420183105,1775755847982,-500.0,0.00019452,18]
[420183106,1775755847991,-500.0,0.00019452,18]
[420183107,1775755848000,-500.0,0.00019452,18]
[420183108,1775755848010,-500.0,0.00019452,18]
[420183109,1775755848020,-500.0,0.00019452,18]
[420183110,1775755848030,-500.0,0.00019452,18]
[420183111,1775755848039,-642.83,0.00019452,18]
[420183112,1775755848049,-500.0,0.00019452,18]
[420183113,1775755848058,-500.0,0.00019452,18]
[420183114,1775755848068,-500.0,0.00019452,18]
[420183115,1775755848077,-550.91,0.00019452,18]
[420183116,1775755848086,-500.0,0.00019452,18]
[420183117,1775755848097,-600.0,0.00019452,18]
[420183118,1775755848106,-1917.66,0.00019452,18]
[420183119,1775755848116,-257.55294169,0.00019452,18]
[420183120,1775755848126,-500.0,0.00019452,18]
[420183121,1775755848135,-500.0,0.00019452,18]
[420183122,1775755848145,-721.09,0.00019452,18]
[420183123,1775755848155,-544.05,0.00019452,18]
[420183124,1775755848164,-500.0,0.00019452,18]
[420183125,1775755848174,-500.0,0.00019452,18]
[420183126,1775755848184,-377.71913127,0.00019452,18]
[420183127,1775755848193,-500.0,0.00019452,18]
[420183128,1775755848203,-500.0,0.00019452,18]
[420183129,1775755848212,-500.0,0.00019452,18]
[420183130,1775755848222,-221.61177679,0.00019452,18]
[420183131,1775755848231,-729.79,0.00019452,18]
[420183132,1775755848241,-500.0,0.00019452,18]
[420183133,1775755848251,-4420.21,0.00019452,18]
[420183134,1775755848260,-500.0,0.00019452,18]
[420183135,1775755848270,-500.0,0.00019452,18]
[420183136,1775755848279,-500.0,0.00019452,18]
[420183137,1775755848288,-500.0,0.00019452,18]
[420183138,1775755848298,-500.0,0.00019452,18]
[420183139,1775755848308,-500.0,0.00019452,18]
[420183140,1775755848317,-1000.0,0.00019452,2]
[420183141,1775755848326,-601.60448378,0.00019452,18]
[420183142,1775755848336,-500.0,0.00019452,18]
[420183143,1775755848346,-500.0,0.00019452,18]
[420183144,1775755848355,-711.07,0.00019452,18]
[420183145,1775755848365,-3591.62,0.00019452,18]
[420183146,1775755848375,-500.0,0.00019452,18]
[420183147,1775755848384,-255.30714509,0.00019452,18]
[420183148,1775755848393,-562.27,0.00019452,18]
[420183149,1775755848403,-500.0,0.00019452,18]
[420183150,1775755848412,-1421.51,0.00019452,18]
[420183151,1775755848421,-668.97,0.00019452,18]
[420183152,1775755848431,-652.85,0.00019452,18]
[420183153,1775755848440,-1142.57,0.00019452,18]
[420183154,1775755848450,-506.53,0.00019452,18]
[420183155,1775755848459,-2551.86,0.00019452,18]
[420183156,1775755848469,-500.0,0.00019452,18]
[420183157,1775755848478,-500.0,0.00019452,18]
[420183158,1775755848488,-1095.45,0.00019452,18]
[420183159,1775755848497,-562.87,0.00019452,18]
[420183160,1775755848506,-500.0,0.00019452,18]
[420183161,1775755848516,-500.0,0.00019452,18]
[420183162,1775755848525,-500.0,0.00019452,18]
[420183163,1775755848535,-500.0,0.00019452,18]
[420183164,1775755848544,-500.0,0.00019452,18]
[420183165,1775755848553,-1193.44,0.00019452,18]
[420183166,1775755848563,-500.0,0.00019452,18]
[420183167,1775755848573,-500.0,0.00019452,18]
[420183168,1775755848582,-500.0,0.00019452,14]
[420183169,1775755848593,-747.27,0.00019452,18]
[420183170,1775755848602,-1084.82,0.00019452,18]
[420183171,1775755848611,-500.0,0.00019452,2]
[420183172,1775755848621,-207.47529259,0.00019452,18]
[420183173,1775755848630,-500.0,0.00019452,18]
[420183174,1775755848640,-1788.96,0.00019452,18]
[420183175,1775755848649,-508.74056091,0.00019452,18]
[420183176,1775755848659,-500.0,0.00019452,18]
[420183177,1775755848668,-1272.73,0.00019452,18]
[420183178,1775755848678,-2669.38,0.00019452,18]
[420183179,1775755848687,-500.0,0.00019452,18]
[420183180,1775755848696,-500.0,0.00019452,18]
[420183181,1775755848706,-1860.18,0.00019452,18]
[420183182,1775755848716,-500.0,0.00019452,18]
[420183183,1775755848725,-1591.24,0.00019452,18]
[420183184,1775755848734,-212.14028085,0.00019452,18]
[420183185,1775755848744,-246.43854423,0.00019452,18]
[420183186,1775755848754,-500.0,0.00019452,18]
[420183187,1775755848764,-515.25309766,0.00019452,18]
[420183188,1775755848773,-500.0,0.00019452,7]
[420183189,1775755848783,-3298.73,0.00019452,18]
[420183190,1775755848793,-500.0,0.00019452,18]
[420183191,1775755848802,-500.0,0.00019452,18]
[420183192,1775755848812,-784.48471413,0.00019452,18]
[420183193,1775755849139,-560.78235578,0.00019452,18]
[420183194,1775755849530,-717.75293009,0.00019452,18]
[420183195,1775755849539,-500.0,0.00019452,18]
[420183196,1775755849548,-500.0,0.00019452,18]
[420183197,1775755849558,-500.0,0.00019452,18]
[420183198,1775755849567,-500.0,0.00019452,18]
[420183199,1775755849577,-500.0,0.00019452,18]
[420183200,1775755849586,-500.0,0.00019452,18]
[420183201,1775755849596,-568.04,0.00019452,18]
[420183202,1775755849605,-500.0,0.00019452,18]
[420183203,1775755849614,-500.0,0.00019452,18]
[420183204,1775755849624,-567.05,0.00019452,18]
[420183205,1775755849633,-2057.51,0.00019452,18]
[420183206,1775755849642,-1129.19,0.00019452,18]
[420183207,1775755849651,-500.0,0.00019452,18]
[420183208,1775755849660,-500.0,0.00019452,18]
[420183209,1775755849669,-375.95705755,0.00019452,18]
[420183210,1775755849678,-500.0,0.00019452,18]
[420183211,1775755849687,-2014.08,0.00019452,18]
[420183212,1775755849696,-515.08965229,0.00019452,18]
[420183213,1775755849705,-2359.05,0.00019452,18]
[420183214,1775755849714,-500.0,0.00019452,18]
[420183215,1775755849724,-3992.71,0.00019452,18]
[420183216,1775755849733,-519.86513528,0.00019452,18]
[420183217,1775755849742,-500.0,0.00019452,18]
[420183218,1775755849751,-55.55953211,0.00019452,18]
[420183219,1775755849764,-444.44046789,0.00019452,18]
[420183220,1775755849773,-1380.64023838,0.00019452,18]
[420183221,1775755850017,-500.0,0.00019172,2]
[420183222,1775755850027,-197.76562631,0.00019172,2]
[420183223,1775755850036,-275.09976162,0.00019452,18]
[420183224,1775755850045,-618.53,0.00019452,18]
[420183225,1775755850055,-1067.73,0.00019452,18]
[420183226,1775755850064,-517.76,0.00019452,18]
[420183227,1775755850073,-514.59,0.00019452,18]
[420183228,1775755850082,-500.0,0.00019452,18]
[420183229,1775755850092,-500.0,0.00019452,18]
[420183230,1775755850102,-500.0,0.00019452,18]
[420183231,1775755850111,-500.0,0.00019452,18]
[420183232,1775755850121,-500.0,0.00019452,18]
[420183233,1775755850130,-505.75522018,0.00019452,18]
[420183234,1775755850140,-3689.9,0.00019452,18]
[420183235,1775755850149,-555.91,0.00019452,18]
[420183236,1775755850158,-500.0,0.00019452,18]
[420183237,1775755850167,-500.0,0.00019452,18]
[420183238,1775755850177,-641.69822601,0.00019452,18]
[420183239,1775755850186,-500.0,0.00019452,18]
[420183240,1775755850195,-587.84,0.00019452,18]
[420183241,1775755850204,-500.0,0.00019452,18]
[420183242,1775755850213,-500.0,0.00019452,18]
[420183243,1775755850222,-500.0,0.00019452,18]
[420183244,1775755850231,-500.0,0.00019452,18]
[420183245,1775755850240,-632.27152011,0.00019452,18]
[420183246,1775755850249,-500.0,0.00019452,18]
[420183247,1775755850258,-500.0,0.00019452,18]
[420183248,1775755850268,-1016.99,0.00019452,18]
[420183249,1775755850278,-500.0,0.00019452,18]
[420183250,1775755850287,-600.61,0.00019452,18]
[420183251,1775755850296,-797.99942847,0.00019452,18]
[420183252,1775755850603,-538.37057153,0.00019452,18]
[420183253,1775755850612,-500.0,0.00019452,18]
[420183254,1775755850622,-500.0,0.00019452,18]
[420183255,1775755850631,-500.0,0.00019452,18]
[420183256,1775755850640,-500.0,0.00019452,18]
[420183257,1775755850650,-500.0,0.00019452,18]
[420183258,1775755850660,-500.0,0.00019452,18]
[420183259,1775755850670,-500.0,0.00019452,18]
[420183260,1775755850680,-1134.94,0.00019452,18]
[420183261,1775755850690,-747.16,0.00019452,18]
[420183262,1775755850700,-500.0,0.00019452,18]
[420183263,1775755850710,-500.0,0.00019452,18]
[420183264,1775755850720,-682.24,0.00019452,18]
[420183265,1775755850730,-500.0,0.00019452,18]
[420183266,1775755850740,-500.0,0.00019452,18]
[420183267,1775755850750,-1662.6,0.00019452,18]
[420183268,1775755850760,-500.0,0.00019452,18]
[420183269,1775755850770,-500.0,0.00019452,18]
[420183270,1775755850780,-5111.17,0.00019452,18]
[420183271,1775755850791,-500.0,0.00019452,18]
[420183272,1775755850801,-500.0,0.00019452,18]
[420183273,1775755850811,-500.0,0.00019452,18]
[420183274,1775755850821,-500.0,0.00019452,18]
[420183275,1775755850832,-500.0,0.00019452,18]
[420183276,1775755850844,-500.0,0.00019452,18]
[420183277,1775755850853,-1126.18,0.00019452,18]
[420183278,1775755850863,-500.0,0.00019452,18]
[420183279,1775755850874,-500.0,0.00019452,18]
[420183280,1775755850884,-500.0,0.00019452,18]
[420183281,1775755850895,-500.0,0.00019452,18]
[420183282,1775755850906,-745.89,0.00019452,18]
[420183283,1775755850917,-500.0,0.00019452,18]
[420183284,1775755850927,-500.0,0.00019452,18]
[420183285,1775755850937,-500.0,0.00019452,18]
[420183286,1775755850947,-1159.44,0.00019452,18]
[420183287,1775755850956,-500.0,0.00019452,18]
[420183288,1775755850967,-733.73,0.00019452,18]
[420183289,1775755850977,-337.88307641,0.00019452,18]
[420183290,1775755850987,-500.0,0.00019452,10]
[420183291,1775755850997,-500.0,0.00019452,18]
[420183292,1775755851007,-500.0,0.00019452,18]
[420183293,1775755851017,-500.0,0.00019452,18]
[420183294,1775755851028,-1637.68,0.00019452,18]
[420183295,1775755851038,-500.0,0.00019452,18]
[420183296,1775755851049,-500.0,0.00019452,18]
[420183297,1775755851059,-500.0,0.00019452,18]
[420183298,1775755851069,-1296.63,0.00019452,18]
[420183299,1775755851080,-3905.79,0.00019452,18]
[420183300,1775755851091,-1458.07,0.00019452,18]
[420183301,1775755851101,-500.0,0.00019452,18]
[420183302,1775755851111,-500.0,0.00019452,18]
[420183303,1775755851121,-2956.91,0.00019452,18]
[420183304,1775755851131,-210.61,0.00019452,18]
[420183305,1775755851142,-886.01,0.00019452,18]
[420183306,1775755851153,-500.0,0.00019452,18]
[420183307,1775755851164,-500.0,0.00019452,18]
[420183308,1775755851175,-995.33,0.00019452,18]
[420183309,1775755851185,-596.98830066,0.00019452,18]
[420183310,1775755851196,-1720.23,0.00019452,18]
[420183311,1775755851206,-504.34789401,0.00019452,18]
[420183312,1775755851217,-500.0,0.00019452,18]
[420183313,1775755851227,-253.46507324,0.00019452,18]
[420183314,1775755851238,-1227.55,0.00019452,18]
[420183315,1775755851248,-1103.88,0.00019452,18]
[420183316,1775755851259,-500.0,0.00019452,18]
[420183317,1775755851269,-500.0,0.00019452,18]
[420183318,1775755851279,-505.02684559,0.00019452,18]
[420183319,1775755851289,-500.0,0.00019452,18]
[420183320,1775755851300,-1888.16,0.00019452,18]
[420183321,1775755851310,-500.0,0.00019452,18]
[420183322,1775755851320,-500.0,0.00019452,18]
[420183323,1775755851330,-386.65166063,0.00019452,18]
[420183324,1775755851342,-1118.78,0.00019452,18]
[420183325,1775755851352,-500.0,0.00019452,18]
[420183326,1775755851362,-500.0,0.00019452,18]
[420183327,1775755851372,-1366.73489358,0.00019452,18]
[420183328,1775755851387,-1972.59510642,0.00019452,18]
[420183329,1775755851398,-539.46,0.00019452,18]
[420183330,1775755851408,-500.0,0.00019452,18]
[420183331,1775755851418,-449.84807357,0.00019452,18]
[420183332,1775755851436,-667.83192643,0.00019452,18]
[420183333,1775755851446,-500.0,0.00019452,18]
[420183334,1775755851456,-1565.64861239,0.00019452,18]
[420183335,1775755851468,-6420.46138761,0.00019452,18]
[420183336,1775755851479,-500.0,0.00019452,18]
[420183337,1775755851489,-1000.0,0.00019452,2]
[420183338,1775755851499,-500.0,0.00019452,18]
[420183339,1775755851510,-500.0,0.00019452,18]
[420183340,1775755851520,-2361.17,0.00019452,18]
[420183341,1775755851531,-500.0,0.00019452,18]
[420183342,1775755851543,-500.0,0.00019452,18]
[420183343,1775755851554,-6333.78,0.00019452,18]
[420183344,1775755851564,-500.0,0.00019452,18]
[420183345,1775755851574,-1013.6,0.00019452,18]
[420183346,1775755851584,-500.0,0.00019452,18]
[420183347,1775755851595,-500.0,0.00019452,18]
[420183348,1775755851605,-500.0,0.00019452,18]
[420183349,1775755851616,-500.0,0.00019452,18]
[420183350,1775755851626,-500.0,0.00019452,18]
[420183351,1775755851637,-500.0,0.00019452,18]
[420183352,1775755851648,-500.0,0.00019452,18]
[420183353,1775755851659,-500.0,0.00019452,18]
[420183354,1775755851668,-500.0,0.00019452,18]
[420183355,1775755851680,-1207.8,0.00019452,18]
[420183356,1775755851690,-500.0,0.00019452,18]
[420183357,1775755851700,-500.0,0.00019452,18]
[420183358,1775755851710,-666.72,0.00019452,18]
[420183359,1775755851720,-636.26,0.00019452,18]
[420183360,1775755851731,-500.0,0.00019452,18]
[420183361,1775755851740,-500.0,0.00019452,18]
[420183362,1775755851751,-500.0,0.00019452,18]
[420183363,1775755851761,-500.0,0.00019452,18]
[420183364,1775755851772,-500.0,0.00019452,18]
[420183365,1775755851782,-500.0,0.00019452,18]
[420183366,1775755851793,-1079.75,0.00019452,18]
[420183367,1775755851803,-500.0,0.00019452,18]
[420183368,1775755851813,-1036.9,0.00019452,18]
[420183369,1775755851823,-500.0,0.00019452,18]
[420183370,1775755851833,-634.96,0.00019452,18]
[420183371,1775755851844,-237.87959431,0.00019452,18]
[420183372,1775755851854,-540.38266066,0.00019452,18]
[420183373,1775755851864,-500.0,0.00019452,18]
[420183374,1775755851874,-500.0,0.00019452,18]
[420183375,1775755851885,-500.0,0.00019452,18]
[420183376,1775755851895,-500.0,0.00019452,18]
[420183377,1775755851907,-555.99190089,0.00019452,18]
[420183378,1775755851920,-500.0,0.00019452,18]
[420183379,1775755851933,-1457.37,0.00019452,18]
[420183380,1775755851946,-500.0,0.00019452,18]
[420183381,1775755851959,-874.81,0.00019452,18]
[420183382,1775755851970,-500.0,0.00019452,18]
[420183383,1775755851979,-651.17,0.00019452,18]
[420183384,1775755851992,-500.0,0.00019452,18]
[420183385,1775755852004,-500.0,0.00019452,18]
[420183386,1775755852017,-500.0,0.00019452,18]
[420183387,1775755852029,-500.0,0.00019452,18]
[420183388,1775755852044,-2549.38,0.00019452,18]
[420183389,1775755852056,-500.0,0.00019452,18]
[420183390,1775755852067,-500.0,0.00019452,18]
[420183391,1775755852081,-500.0,0.00019452,18]
[420183392,1775755852093,-500.0,0.00019452,18]
[420183393,1775755852107,-500.0,0.00019452,18]
[420183394,1775755852118,-500.0,0.00019452,18]
[420183395,1775755852131,-3580.53,0.00019452,18]
[420183396,1775755852143,-289.00736893,0.00019452,18]
[420183397,1775755852155,-500.0,0.00019452,18]
[420183398,1775755852167,-500.0,0.00019452,18]
[420183399,1775755852177,-500.0,0.00019452,18]
[420183400,1775755852189,-500.0,0.00019452,18]
[420183401,1775755852200,-731.7,0.00019452,18]
[420183402,1775755852213,-500.0,0.00019452,18]
[420183403,1775755852226,-500.0,0.00019452,18]
[420183404,1775755852239,-500.0,0.00019452,18]
[420183405,1775755852252,-500.0,0.00019452,18]
[420183406,1775755852263,-500.0,0.00019452,18]
[420183407,1775755852276,-5713.01,0.00019452,18]
[420183408,1775755852288,-1071.82,0.00019452,18]